[Event "CCT Final-KO 2024"]
[Site "Oslo"]
[Date "2024.12.20"]
[Round "1.2"]
[White "Vachier-Lagrave, Maxime"]
[Black "Carlsen, Magnus"]
[Result "1-0"]
[ECO "B27"]
[WhiteElo "2763"]
[BlackElo "2838"]
[Annotator "TA"]
[PlyCount "113"]
[EventDate "2024.12.11"]
[EventType "k.o."]
[EventCountry "NOR"]
[SourceTitle "playchess.com"]
[Source "ChessBase"]
[SourceQuality "1"]
[TimeControl "600+2"]

{[%evp 9,113,25,7,0,4,-5,15,23,26,36,31,-14,-8,-14,-28,-45,-53,-49,-45,-50,-58,-45,-51,-39,-45,-52,-46,-67,-31,-52,-25,-32,0,0,27,30,34,31,39,31,39,42,39,63,163,147,131,133,236,254,381,373,364,374,383,389,407,386,414,58,72,52,291,281,293,16,16,17,18,19,15,8,8,8,12,17,24,20,20,8,20,28,28,28,59,63,233,210,230,235,183,245,245,110,164,170,245,238,769,755,692,651,29972,29973,29972,29974]} 1. e4 {[%emt 0:00:01]} c5 {[%emt 0:00:01]} 2. Nf3 {[%emt 0:00:02]} g6 {[%emt 0:00:02]} 3. c3 {[%emt 0:00:05]} d5 {[%emt 0:00:02]} 4. e5 {[%emt 0:00:02]} a6 {[%emt 0:00:10]} 5. h3 {[%emt 0:00:11]} Nc6 {[%emt 0:00:13]} 6. d4 {[%emt 0:00:02]} Bg7 {[%emt 0:00:16]} 7. g3 {[%emt 0:00:02]} Bf5 {[%emt 0:01:58]} 8. Bg2 {[%emt 0:00:09]} e6 {[%emt 0:00:07]} 9. O-O {[%emt 0:00:14]} Nge7 {[%emt 0:00:02]} 10. Be3 {[%emt 0:00:56]} Qb6 {[%emt 0:00:59]} 11. g4 {[%emt 0:00:17]} Be4 $1 {[%emt 0:00:16]} 12. Qb3 {[%emt 0:02:07]} Qxb3 {[%emt 0:00:10]} 13. axb3 {[%emt 0:00:02]} cxd4 {[%emt 0:00:31]} 14. cxd4 {[%emt 0:00:01]} Bxf3 {[%emt 0:00:23]} 15. Bxf3 {[%emt 0:00:01]} f6 {[%emt 0:00:02]} 16. exf6 {[%emt 0:00:05]} Bxf6 {[%emt 0:00:01]} 17. Rd1 {[%emt 0:00:02]} Nb4 {[%emt 0:00:21]} 18. Rd2 {[%emt 0:00:17] Repels Nc2} Nec6 {[%emt 0:00:09]} 19. Nc3 {[%emt 0:00:05][%cal Bb1c3,Bc3a4,Ba4c5][%mdl 32]} Rf8 {[%emt 0:00:05]} 20. Kg2 {[%emt 0:00:20]} Kd7 {[%emt 0:00:02]} 21. Na4 {[%emt 0:00:34]} Rae8 {[%emt 0:00:03]} 22. Nc5+ {[%emt 0:00:05]} Kc7 {[%emt 0:00:13]} 23. g5 {[%emt 0:00:09]} Bg7 {[%emt 0:01:17]} 24. Bg4 {[%emt 0:00:01]} e5 {[%emt 0:00:07]} 25. dxe5 {[%emt 0:00:12]} Bxe5 {[%emt 0:00:16]} 26. Re2 {[%emt 0:01:04]} (26. Ne6+ $2 Rxe6 27. Bxe6 d4 $19) 26... d4 {[%emt 0:00:17]} (26... Rf7 $14) 27. Bd2 $18 {[%emt 0:00:01]} d3 {[%emt 0:00:01]} 28. Re4 {[%emt 0:00:05] Some like it hot} Bxb2 {[%emt 0:00:06]} (28... Nd5 $16) 29. Rae1 {[%emt 0:00:03]} Rxe4 {[%emt 0:00:06]} (29... Bd4 $142 30. Bxb4 (30. Rxe8 Rxf2+ 31. Kg3 Rxd2 $11) (30. Rxd4 Nxd4 31. Bxb4 a5 $18) 30... Rxe4 31. Rxe4 Rxf2+ 32. Kg3 Bxc5 33. Bxc5 Rc2) 30. Rxe4 {[%emt 0:00:01]} Kd6 {[%emt 0:01:16]} 31. Bxb4 {[%emt 0:00:21]} Nxb4 {[%emt 0:00:06]} 32. Nxb7+ {[%emt 0:00:01]} Kd5 {[%emt 0:00:12]} 33. Rxb4 {[%emt 0:00:02]} d2 {[%emt 0:00:01]} 34. Na5 $2 {[%emt 0:00:50]} (34. f4 $18) 34... Bd4 $14 {[%emt 0:01:04][%cal Of8f4] [#]} 35. Nc4 $1 {[%emt 0:00:01]} Rxf2+ $2 {[%emt 0:00:00]} (35... Rf4 $14 36. Rb7 (36. Nxd2 Rxf2+ 37. Kg3 Rxd2 $11) 36... Kc5 (36... Rxf2+ $2 37. Kg3 $18) (36... Rxg4+ 37. hxg4 d1=Q 38. Ne3+ Kc6 39. Nxd1 $16) 37. Rc7+ (37. Rxh7 $2 Rxg4+ 38. hxg4 d1=Q $19) (37. Nxd2 Rxf2+ 38. Kh1 Rxd2 $11) (37. Bf3 $2 Rxf3 38. Rc7+ Kb4 $19) 37... Kb4 38. Nxd2 Rxf2+ 39. Kh1 Rxd2) 36. Kg3 $18 {[%emt 0:00:01]} Rf8 {[%emt 0:00:02]} 37. Nxd2 $2 {[%emt 0:00:47]} ({White should try} 37. Rb7 $18) 37... Bf2+ $1 $11 {[%emt 0:00:01]} 38. Kg2 {[%emt 0:00:01] Black must now prevent Bf3+.} Bc5 {[%emt 0:00:01]} 39. Rb7 {[%emt 0:00:39]} Rf2+ {[%emt 0:00:02]} 40. Kg3 {[%emt 0:00:01]} Rxd2 {[%emt 0:00:01]} 41. Rxh7 {[%emt 0:00:01][%mdl 4096] Endgame KRB-KRB. White is a pawn up.} Bd6+ {[%emt 0:00:14]} 42. Kf3 {[%emt 0:00:09]} Rd3+ {[%emt 0:00:01]} 43. Ke2 {[%emt 0:00:00]} Rxb3 {[%emt 0:00:02]} 44. Rg7 {[%emt 0:00:03]} Ke4 {[%emt 0:00:03]} 45. Rxg6 {[%emt 0:00:02]} Rb2+ {[%emt 0:00:01]} 46. Kd1 {[%emt 0:00:04]} Bf4 {[%emt 0:00:01]} 47. Re6+ {[%emt 0:00:04]} Kd3 $2 {[%emt 0:00:02]} ({Black should play} 47... Be5 $1 $14) 48. Bf5+ $18 {[%emt 0:00:01]} (48. Rxa6 $2 Rb1#) 48... Kc3 {[%emt 0:00:05]} 49. g6 {[%emt 0:00:02][%cal Bg5g6,Bg6g7][%mdl 32]} (49. Rxa6 Bxg5 50. Ra4 Rf2 $11) 49... Bh6 {[%emt 0:00:02]} 50. Rxa6 {[%emt 0:00:04]} Kd4 {[%emt 0:00:01]} 51. Re6 {[%emt 0:00:08]} (51. Ra7 $18 {and White stays clearly on top.}) 51... Rf2 {[%emt 0:00:04]} (51... Rb5 $16) 52. Bg4 {[%emt 0:00:07]} Kd5 {[%emt 0:00:04] [#]} (52... Rf8 {might work better.} 53. Re7 Rf1+ 54. Kc2 (54. Ke2 Rf6 $14) 54... Rc1+ 55. Kb2 Rc6) 53. Re7 $1 {[%emt 0:00:06]} Rf6 $2 {[%emt 0:00:01]} (53... Rf8 54. Ke2 Bg5) 54. g7 {[%emt 0:00:05]} Rg6 {[%emt 0:00:01] [#]} 55. Re6 $1 {[%emt 0:00:01][%mdl 512]} Rxg4 {[%emt 0:00:01]} (55... Rg5 56. Rxh6) 56. hxg4 {[%emt 0:00:02]} Bxg7 {[%emt 0:00:03]} 57. Re8 {[%emt 0:00:04]} 1-0

[Event "CCT Final-KO 2024"]
[Site "Oslo"]
[Date "2024.12.20"]
[Round "1.2"]
[White "Nepomniachtchi, Ian"]
[Black "Firouzja, Alireza"]
[Result "1-0"]
[ECO "B48"]
[WhiteElo "2758"]
[BlackElo "2756"]
[Annotator "TA"]
[PlyCount "123"]
[EventDate "2024.12.11"]
[EventType "k.o."]
[EventCountry "NOR"]
[SourceTitle "playchess.com"]
[Source "ChessBase"]
[SourceQuality "1"]
[TimeControl "600+2"]

{[%evp 58,123,119,107,60,62,126,128,129,125,197,193,243,237,235,152,264,233,269,280,295,278,267,267,293,247,207,230,333,274,428,410,422,384,433,419,397,427,433,408,428,418,439,344,550,458,581,554,898,872,861,853,1176,1174,1122,1075,2584,3295,29970,1862,1229,0,29984,29984,29986,29987,29991,29992]} 1. e4 {[%emt 0:00:01]} c5 {[%emt 0:00:00]} 2. Nf3 {[%emt 0:00:02]} e6 {[%emt 0:00:01]} 3. d4 {[%emt 0:00:11]} cxd4 {[%emt 0:00:01]} 4. Nxd4 {[%emt 0:00:02]} Nc6 {[%emt 0:00:00]} 5. Nc3 {[%emt 0:00:01]} Qc7 {[%emt 0:00:01]} 6. Be3 {[%emt 0:00:11]} a6 {[%emt 0:00:01]} 7. a3 {[%emt 0:00:13]} b5 {[%emt 0:00:45]} 8. Nxc6 {[%emt 0:00:11]} Qxc6 {[%emt 0:00:05]} 9. Qd4 {[%emt 0:00:39]} Qd6 {[%emt 0:01:24]} 10. O-O-O {[%emt 0:00:30]} Qxd4 {[%emt 0:00:02]} 11. Bxd4 {[%emt 0:00:04]} Bb7 {[%emt 0:00:14]} 12. f3 {[%emt 0:00:01]} Ne7 {[%emt 0:00:20]} 13. a4 {[%emt 0:01:58]} b4 {[%emt 0:00:33]} 14. Na2 {[%emt 0:00:02]} Nc6 {[%emt 0:01:40]} 15. Bf2 {[%emt 0:00:27]} Be7 {[%emt 0:00:48]} 16. Kb1 {[%emt 0:00:01]} d6 {[%emt 0:00:24]} 17. Nc1 {[%emt 0:00:11]} O-O {[%emt 0:00:19]} 18. Nb3 {[%emt 0:00:00]} Rfc8 {[%emt 0:00:23]} 19. Bg3 {[%emt 0:00:06]} Bf8 {[%emt 0:01:33]} 20. Be2 {[%emt 0:00:12]} e5 {[%emt 0:00:53]} 21. Rd2 {[%emt 0:00:38]} a5 {[%emt 0:00:14]} 22. Bf2 {[%emt 0:00:04]} Ba6 {[%emt 0:00:05]} 23. Bxa6 {[%emt 0:00:14]} Rxa6 {[%emt 0:00:00]} 24. Rhd1 {[%emt 0:00:05]} f6 {[%emt 0:00:02]} 25. Rd5 {[%emt 0:00:02]} Kf7 {[%emt 0:00:11]} 26. Rb5 {[%emt 0:00:00]} Ke6 {[%emt 0:00:11]} 27. Rdd5 {[%emt 0:00:09]} Rca8 {[%emt 0:00:06]} 28. Rb6 {[%emt 0:00:15]} Be7 {[%emt 0:00:05]} 29. Rb7 {[%emt 0:00:39]} f5 {[%emt 0:00:10]} 30. Nd2 {[%emt 0:00:15]} fxe4 {[%emt 0:00:02]} (30... g6 $16) 31. fxe4 $14 {[%emt 0:00:01]} Rc8 {[%emt 0:00:14]} ({Black should play} 31... Nb8 $14) 32. Be3 $16 {[%emt 0:00:22]} Nd8 {[%emt 0:00:10]} 33. Rb6 $1 {[%emt 0:00:08]} Raa8 {[%emt 0:00:06] [#]} (33... Rxb6 $16 34. Bxb6 Nc6) 34. b3 $1 $18 {[%emt 0:00:09]} Nf7 {[%emt 0:00:04]} (34... Rc7 $142 35. Nc4 Nc6) 35. Nc4 $18 {[%emt 0:00:03]} Bd8 {[%emt 0:00:01]} 36. Rb7 {[%emt 0:00:18]} Bc7 {[%emt 0:00:03]} (36... Ra6 $16 37. Rdb5 g6) 37. Rbb5 {[%emt 0:00:21]} Nd8 {[%emt 0:00:01]} 38. Bb6 {[%emt 0:00:05]} Ra6 {[%emt 0:00:02]} 39. Bxc7 {[%emt 0:00:09]} (39. Rxa5 Rxb6 40. Nxb6 Bxb6 $19) 39... Rxc7 {[%emt 0:00:01]} 40. Nxa5 {[%emt 0:00:01]} ({Don't play} 40. Rxa5 Rxa5 41. Rxa5 Nb7 $18) 40... Nf7 {[%emt 0:00:02]} 41. Rxb4 {[%emt 0:00:34]} Ng5 {[%emt 0:00:02] [#]} 42. Rdb5 $1 {[%emt 0:00:01]} Rc5 {[%emt 0:00:03]} (42... Rca7 $142) 43. Nb7 {[%emt 0:00:12]} Rc7 {[%emt 0:00:03]} (43... Rxb5 {might work better.} 44. axb5 Ra7) 44. h4 $18 {[%emt 0:00:06]} Nf7 {[%emt 0:00:00]} 45. Na5 {[%emt 0:00:08]} g5 {[%emt 0:00:02]} 46. h5 {[%emt 0:00:02]} (46. Nc4 gxh4 47. Rb8 Ng5 $18) 46... g4 {[%emt 0:00:01]} 47. Nc4 {[%emt 0:00:03]} Ng5 {[%emt 0:00:02]} 48. Rb7 {[%emt 0:00:16]} Rxb7 {[%emt 0:00:03]} 49. Rxb7 {[%emt 0:00:01]} Nxe4 {[%emt 0:00:01]} 50. Rxh7 {[%emt 0:00:02]} Kf5 {[%emt 0:00:04]} (50... Nf6 $142) 51. h6 {[%emt 0:00:05]} d5 {[%emt 0:00:02]} 52. Ne3+ {[%emt 0:00:01]} Ke6 {[%emt 0:00:03]} 53. Rg7 {[%emt 0:00:08]} Ra8 {[%emt 0:00:01]} 54. Nxg4 {[%emt 0:00:05]} d4 {[%emt 0:00:02]} 55. h7 {[%emt 0:00:10]} Rh8 {[%emt 0:00:01]} 56. a5 {[%emt 0:00:04]} Nd6 {[%emt 0:00:02]} 57. a6 {[%emt 0:00:05]} Nf5 {[%emt 0:00:03]} 58. Rb7 {[%emt 0:00:05]} (58. Rg6+ $142 Kd7 59. a7 (59. Nxe5+ Ke7 $18) 59... d3 60. Nxe5+ (60. cxd3 e4 $18) 60... Kc7 61. cxd3 (61. Nxd3 Ne7 $18) 61... Re8 62. Rg8 Rxe5 63. a8=Q (63. h8=B Ra5 $18) (63. h8=Q Re2 64. Qc3+ Kd6 65. a8=Q Re1+ 66. Qxe1 Nd4 67. Qb4+ Ke5 68. Qe4+ Kf6 69. Qf8#)) 58... Nd6 {[%emt 0:00:02]} 59. Rg7 {[%emt 0:00:08]} Nf5 $1 {[%emt 0:00:02]} 60. Rg6+ {[%emt 0:00:00]} Ke7 {[%emt 0:00:03]} 61. a7 {[%emt 0:00:02]} e4 {[%emt 0:00:01]} 62. Rg8 {[%emt 0:00:04]} 1-0

[Event "CCT Final-KO 2024"]
[Site "Oslo"]
[Date "2024.12.20"]
[Round "1.3"]
[White "Carlsen, Magnus"]
[Black "Vachier-Lagrave, Maxime"]
[Result "1-0"]
[ECO "D78"]
[WhiteElo "2838"]
[BlackElo "2763"]
[Annotator "TA"]
[PlyCount "89"]
[EventDate "2024.12.11"]
[EventType "k.o."]
[EventCountry "NOR"]
[SourceTitle "playchess.com"]
[Source "ChessBase"]
[SourceQuality "1"]
[TimeControl "600+2"]

{[%evp 24,89,0,0,0,-85,-83,-73,0,0,0,-60,0,-135,-17,-30,-31,-31,-32,-33,-39,-129,72,84,72,79,76,96,178,210,195,197,197,195,372,364,365,358,368,366,323,287,281,263,484,480,504,506,467,346,480,462,474,472,589,562,707,707,685,656,10951,508,10951,8949,6730,6428,1110,1068]} 1. d4 {[%emt 0:00:09]} Nf6 {[%emt 0:00:01]} 2. c4 {[%emt 0:00:01]} g6 {[%emt 0:00:01]} 3. g3 {[%emt 0:00:01]} c6 {[%emt 0:00:01]} 4. Bg2 {[%emt 0:00:04]} d5 {[%emt 0:00:02]} 5. Nf3 {[%emt 0:00:01]} Bg7 {[%emt 0:00:01]} 6. O-O {[%emt 0:00:02]} O-O {[%emt 0:00:02]} 7. Re1 {[%emt 0:00:02]} dxc4 {[%emt 0:00:43]} 8. e4 {[%emt 0:00:02]} b5 {[%emt 0:00:02]} 9. a4 {[%emt 0:00:05]} a5 {[%emt 0:00:04]} 10. axb5 {[%emt 0:00:01]} cxb5 {[%emt 0:00:01]} 11. Nc3 {[%emt 0:00:02]} Bb7 {[%emt 0:00:38]} 12. d5 {[%emt 0:01:21]} b4 {[%emt 0:00:08]} 13. Na4 $1 {[%emt 0:00:01]} Nbd7 {[%emt 0:00:24]} 14. e5 {[%emt 0:00:46]} (14. Bf4 $11) 14... Nxd5 $17 {[%emt 0:00:17]} 15. e6 {[%emt 0:00:01]} N7b6 {[%emt 0:01:29]} (15... fxe6 $17 16. Ng5 Ne5 17. Nxe6 (17. Nc5 Qb6 $15) 17... Qd6) 16. exf7+ $11 {[%emt 0:00:40]} Rxf7 {[%emt 0:00:02]} 17. Ng5 {[%emt 0:00:03]} (17. Nc5 $11 Qb8 18. Nxb7 Qxb7 19. Ne5) 17... Rf5 {[%emt 0:00:30]} (17... Nxa4 $15 18. Nxf7 Kxf7 19. Qxa4 Nb6) 18. g4 {[%emt 0:01:36]} (18. Ne6 $11 Qd6 19. Nxg7 Kxg7 20. g4) 18... Rf6 {[%emt 0:00:02]} ({Black should try} 18... Rxg5 $1 $17 19. Bxg5 Nxa4 20. Qxa4 Nb6 (20... Bxb2 $2 21. Qb5 $18)) 19. Nc5 $11 {[%emt 0:00:18]} Bc6 {[%emt 0:00:54]} 20. Nce6 {[%emt 0:00:24]} Qd7 $1 {[%emt 0:00:02]} 21. Nxg7 {[%emt 0:00:14]} Kxg7 {[%emt 0:00:01]} 22. Ne4 {[%emt 0:00:21]} (22. Qd4 $15 Kg8 23. Ne4) 22... Nf4 $2 {[%emt 0:01:14]} (22... Re6 $17 {aiming for ...Nf6.} 23. h3 c3) 23. Qxd7 $16 {[%emt 0:00:52]} Nxd7 {[%emt 0:00:02]} 24. Nxf6 {[%emt 0:00:02]} Nxg2 {[%emt 0:00:02]} 25. Re6 {[%emt 0:00:02]} (25. Rxe7+ $2 Kxf6 26. Rxd7 Bxd7 $19) 25... Nxf6 {[%emt 0:00:01]} (25... Nb8 $16 26. Ne4 (26. Rxe7+ $2 {perishes.} Kxf6 27. Rxh7 Ne1 $19) 26... Ne1) 26. Rxc6 $18 {[%emt 0:00:01]} Ne1 {[%emt 0:00:02]} 27. Rxc4 {[%emt 0:00:07]} Nd3 {[%emt 0:00:05]} 28. g5 {[%emt 0:00:08]} Nd7 $2 {[%emt 0:00:12]} (28... Ne8 29. Bf4 e5) 29. Rc7 $18 {[%emt 0:00:03]} N7e5 {[%emt 0:00:40]} 30. Rxe7+ {[%emt 0:00:01]} Kg8 {[%emt 0:00:07]} 31. Be3 {[%emt 0:00:15]} a4 {[%emt 0:00:02]} 32. Kg2 {[%emt 0:00:12]} a3 {[%emt 0:00:21]} 33. bxa3 {[%emt 0:00:30]} b3 $2 {[%emt 0:00:01]} (33... bxa3 34. Bd4 Nc6 35. Rg7+ Kf8) 34. Bd4 $18 {[%emt 0:00:16]} Nf4+ {[%emt 0:00:01]} 35. Kf1 {[%emt 0:00:05]} Nf3 {[%emt 0:00:03]} 36. Bf6 {[%emt 0:01:03]} Nxh2+ {[%emt 0:00:01]} 37. Kg1 {[%emt 0:00:05]} Nf3+ {[%emt 0:00:01]} 38. Kh1 {[%emt 0:00:01]} Nd3 {[%emt 0:00:37]} 39. Re3 {[%emt 0:00:08]} Nfe1 {[%emt 0:00:38]} 40. Raxe1 {[%emt 0:00:01]} Nxe1 {[%emt 0:00:01]} 41. Rxe1 {[%emt 0:00:01]} Rxa3 {[%emt 0:00:01]} 42. Re8+ {[%emt 0:00:02]} Kf7 {[%emt 0:00:01]} 43. Re7+ {[%emt 0:00:02]} Kf8 {[%emt 0:00:05]} 44. Rxh7 {[%emt 0:00:04]} Ra2 {[%emt 0:00:02]} 45. Kg2 {[%emt 0:00:03]} 1-0

[Event "CCT Final-KO 2024"]
[Site "Oslo"]
[Date "2024.12.20"]
[Round "1.3"]
[White "Firouzja, Alireza"]
[Black "Nepomniachtchi, Ian"]
[Result "1/2-1/2"]
[ECO "A07"]
[WhiteElo "2756"]
[BlackElo "2758"]
[Annotator "TA"]
[PlyCount "119"]
[EventDate "2024.12.11"]
[EventType "k.o."]
[EventCountry "NOR"]
[SourceTitle "playchess.com"]
[Source "ChessBase"]
[SourceQuality "1"]
[TimeControl "600+2"]

{[%evp 54,119,0,0,0,0,202,189,179,214,220,211,220,222,220,218,217,214,235,229,239,239,235,210,314,311,403,403,403,403,403,393,403,403,403,403,1029,948,2024,1029,2312,481,1868,845,2411,2393,1983,174,179,8,8,8,8,0,8,0,0,0,0,0,8,0,0,0,0,0,0,0]} 1. Nf3 {[%emt 0:00:01]} d5 {[%emt 0:00:01]} 2. b3 {[%emt 0:00:01]} Bf5 {[%emt 0:00:01]} 3. Bb2 {[%emt 0:00:01]} e6 {[%emt 0:00:01]} 4. g3 {[%emt 0:00:02]} Nf6 {[%emt 0:00:01]} 5. Bg2 {[%emt 0:00:01]} h6 {[%emt 0:00:01]} 6. O-O {[%emt 0:00:03]} Be7 {[%emt 0:00:00]} 7. d3 {[%emt 0:00:01]} O-O {[%emt 0:00:02]} 8. Nbd2 {[%emt 0:00:01]} a5 {[%emt 0:00:01]} 9. a3 {[%emt 0:00:13]} Bh7 {[%emt 0:00:02]} 10. Re1 {[%emt 0:00:03]} c6 {[%emt 0:00:01]} 11. e4 {[%emt 0:00:06]} Re8 {[%emt 0:00:00]} 12. Qe2 {[%emt 0:00:18]} Bf8 {[%emt 0:00:01]} 13. h3 {[%emt 0:00:14]} Qc7 {[%emt 0:00:06]} 14. e5 {[%emt 0:01:19]} Nfd7 {[%emt 0:00:04]} 15. g4 {[%emt 0:00:03]} c5 {[%emt 0:00:09]} 16. g5 {[%emt 0:00:30]} a4 {[%emt 0:00:11]} 17. gxh6 {[%emt 0:00:18]} gxh6 {[%emt 0:00:02]} 18. Nh2 {[%emt 0:00:37]} Nc6 {[%emt 0:00:10]} 19. Ng4 {[%emt 0:00:11]} Nd4 {[%emt 0:00:31]} 20. Bxd4 {[%emt 0:01:27]} cxd4 {[%emt 0:00:02]} 21. Nf3 {[%emt 0:00:06]} axb3 {[%emt 0:00:01]} 22. cxb3 {[%emt 0:00:01]} Qc3 {[%emt 0:00:01]} 23. Bf1 {[%emt 0:00:48]} Rec8 {[%emt 0:01:11]} 24. Rec1 {[%emt 0:00:43]} Qxb3 {[%emt 0:00:47]} 25. Rab1 {[%emt 0:00:19]} Qa4 {[%emt 0:00:09]} 26. Rxc8 {[%emt 0:00:32]} Rxc8 {[%emt 0:00:01]} 27. Rxb7 {[%emt 0:00:09]} Bg7 {[%emt 0:00:38]} 28. Qd2 {[%emt 0:00:13]} Qc6 {[%emt 0:00:42]} 29. Ra7 {[%emt 0:00:21]} (29. Nxh6+ $2 Bxh6 30. Qb4 Kh8 $19) 29... Ra8 $2 {[%emt 0:00:28]} (29... h5 $11 {and Black stays safe.} 30. Nh6+ (30. Nxd4 Qb6 $17) 30... Bxh6 31. Qxh6 Qc1 32. Qxh5 (32. Qxc1 Rxc1 33. Kg2 Nc5 $11) 32... Bxd3 33. Qg4+ Kf8) 30. Nxd4 {[%emt 0:00:22]} Qc8 {[%emt 0:00:00]} 31. Nxh6+ {[%emt 0:00:20]} Bxh6 {[%emt 0:00:05]} 32. Rxa8 {[%emt 0:00:00]} Qxa8 {[%emt 0:00:01]} 33. Qxh6 {[%emt 0:00:01]} Nxe5 {[%emt 0:00:57] [#]} 34. Qg5+ $1 {[%emt 0:00:01]} Ng6 {[%emt 0:00:00] [#]} 35. h4 $1 {[%emt 0:00:02]} Qa4 {[%emt 0:00:30]} 36. Nf3 {[%emt 0:00:33]} ({Not} 36. Qd8+ Kg7 37. Qb6 Nxh4 $11 (37... Qxa3 38. h5 $11)) 36... Qf4 {[%emt 0:01:06]} 37. Qxf4 {[%emt 0:00:16]} Nxf4 {[%emt 0:00:03]} 38. a4 {[%emt 0:00:00]} Nxd3 {[%emt 0:00:47]} (38... Bxd3 $142 39. a5 Ne2+ 40. Kh2 Bb5 41. Bxe2 Bxe2) 39. a5 $18 {[%emt 0:00:03]} Nc5 {[%emt 0:00:21]} 40. a6 {[%emt 0:00:05]} Nxa6 {[%emt 0:00:01]} 41. Bxa6 {[%emt 0:00:00]} Kg7 {[%emt 0:00:01]} 42. Kh2 {[%emt 0:00:07]} f6 {[%emt 0:00:03]} 43. Bb7 {[%emt 0:00:11]} Kf7 {[%emt 0:00:12]} 44. Kg3 {[%emt 0:00:02]} Ke7 {[%emt 0:00:04]} (44... Bg6 $142 45. Nd4 Bh5) 45. h5 $18 {[%emt 0:00:08]} Kd6 {[%emt 0:00:04]} 46. h6 {[%emt 0:00:17]} Ke7 {[%emt 0:00:06]} 47. Nh4 {[%emt 0:00:05]} (47. Bc8 $142 {Nd4 would now be deadly.} Kf7 48. Nd4) 47... d4 {[%emt 0:00:07]} (47... Kf7 $142 48. Kf3 Be4+ 49. Ke3 Kg8) 48. f4 $18 {[%emt 0:00:07]} Kf7 {[%emt 0:00:07]} 49. Bf3 {[%emt 0:00:06]} Bc2 {[%emt 0:00:02]} 50. Bg4 $2 {[%emt 0:00:07]} (50. Bh5+ Kg8 51. Nf3) 50... e5 $18 {[%emt 0:00:09]} 51. f5 $2 {[%emt 0:00:04]} (51. Bd7 $18) 51... Kg8 $1 $11 {[%emt 0:00:01]} 52. Nf3 {[%emt 0:00:03]} Kh7 {[%emt 0:00:04]} 53. Ne1 {[%emt 0:00:03]} Be4 {[%emt 0:00:02]} 54. Kh4 {[%emt 0:00:02]} Kxh6 {[%emt 0:00:01]} 55. Nf3 {[%emt 0:00:01]} Bc2 {[%emt 0:00:11]} 56. Kg3 {[%emt 0:00:01]} Be4 {[%emt 0:00:02]} 57. Nd2 {[%emt 0:00:03]} Bc2 {[%emt 0:00:01]} 58. Nf3 {[%emt 0:00:02]} Be4 {[%emt 0:00:01]} 59. Nd2 {[%emt 0:00:00]} Bc2 {[%emt 0:00:02]} 60. Nf3 {[%emt 0:00:02]} 1/2-1/2

[Event "CCT Final-KO 2024"]
[Site "Oslo"]
[Date "2024.12.20"]
[Round "1.4"]
[White "Vachier-Lagrave, Maxime"]
[Black "Carlsen, Magnus"]
[Result "1/2-1/2"]
[ECO "C88"]
[WhiteElo "2763"]
[BlackElo "2838"]
[Annotator "TA"]
[PlyCount "108"]
[EventDate "2024.12.11"]
[EventType "k.o."]
[EventCountry "NOR"]
[SourceTitle "playchess.com"]
[Source "ChessBase"]
[SourceQuality "1"]
[TimeControl "600+2"]

{[%evp 32,108,30,-12,0,0,0,-25,-14,-16,-21,-28,-26,-50,-54,-77,-73,-104,-62,-58,-24,-29,-25,-22,-12,-28,-5,-117,-133,-150,-26,-33,-10,-34,-20,-59,-22,-48,0,0,0,-38,0,0,0,-9,-7,-66,-90,-71,-22,-22,-22,-23,-4,-4,-4,-4,0,0,0,0,0,0,0,0,0,0,0,0,0,0,0,0,0,0,0,0,0]} 1. e4 {[%emt 0:00:01]} e5 {[%emt 0:00:01]} 2. Nf3 {[%emt 0:00:01]} Nc6 {[%emt 0:00:01]} 3. Bb5 {[%emt 0:00:01]} a6 {[%emt 0:00:01]} 4. Ba4 {[%emt 0:00:01]} Nf6 {[%emt 0:00:01]} 5. O-O {[%emt 0:00:01]} Be7 {[%emt 0:00:01]} 6. Re1 {[%emt 0:00:02]} b5 {[%emt 0:00:01]} 7. Bb3 {[%emt 0:00:01]} O-O {[%emt 0:00:03]} 8. a4 {[%emt 0:00:01]} Rb8 {[%emt 0:00:01]} 9. axb5 {[%emt 0:00:03]} axb5 {[%emt 0:00:01]} 10. h3 {[%emt 0:00:06]} d6 {[%emt 0:00:07]} 11. c3 {[%emt 0:00:01]} b4 {[%emt 0:00:07]} 12. d3 {[%emt 0:00:01]} bxc3 {[%emt 0:00:01]} 13. bxc3 {[%emt 0:00:01]} h6 {[%emt 0:00:14]} 14. Nbd2 {[%emt 0:00:12]} Bd7 {[%emt 0:00:21]} 15. Nf1 {[%emt 0:00:08]} Ra8 {[%emt 0:00:01]} 16. Rb1 {[%emt 0:00:28]} Re8 {[%emt 0:00:52]} 17. g4 {[%emt 0:00:29]} Be6 {[%emt 0:00:19]} 18. Ba4 {[%emt 0:00:33]} Bd7 {[%emt 0:00:06]} 19. Ne3 {[%emt 0:00:27]} Nd4 {[%emt 0:00:05]} 20. Bxd7 {[%emt 0:00:02]} Nxf3+ {[%emt 0:00:01]} 21. Qxf3 {[%emt 0:00:02]} Nxd7 {[%emt 0:00:02]} 22. Nf5 {[%emt 0:00:10]} Bg5 {[%emt 0:00:01]} 23. Bxg5 {[%emt 0:00:49]} hxg5 {[%emt 0:00:07]} 24. Kg2 {[%emt 0:00:16]} g6 {[%emt 0:00:21]} 25. Ne3 {[%emt 0:00:01]} (25. Nh6+ $2 Kg7 26. Nxf7 (26. Qxf7+ $2 Kxh6 27. d4 Qe7 $19) 26... Qe7 27. Nxg5 Qxg5 $19) 25... Nf8 {[%emt 0:00:06]} 26. Nd5 {[%emt 0:00:23]} Kg7 {[%emt 0:00:03]} 27. Rb7 {[%emt 0:00:02]} Ne6 {[%emt 0:00:02]} 28. Reb1 {[%emt 0:00:02]} Rf8 {[%emt 0:00:30]} 29. Kg1 {[%emt 0:00:15]} (29. Kh2 $1 $11) 29... Rc8 $1 $17 {[%emt 0:01:14]} 30. Ra7 {[%emt 0:00:17] [#]} f6 {[%emt 0:00:25]} (30... c6 $1 $17 {[%cal Rc6d5]} 31. Ne3 Rb8) 31. Rbb7 {[%emt 0:00:17]} Rf7 {[%emt 0:00:01]} 32. Qd1 {[%emt 0:00:27]} Nc5 {[%emt 0:00:21]} 33. Rb1 {[%emt 0:00:28]} Rb8 {[%emt 0:00:19]} 34. Kh2 {[%emt 0:00:30]} c6 {[%emt 0:00:37]} (34... Ra8 $15 35. Rxa8 Qxa8) 35. Rxf7+ $11 {[%emt 0:00:07]} Kxf7 {[%emt 0:00:01]} 36. Ne3 {[%emt 0:00:05]} Rxb1 {[%emt 0:00:23]} 37. Qxb1 {[%emt 0:00:01]} Qc7 {[%emt 0:00:04]} 38. Kg3 {[%emt 0:00:46]} Kg7 {[%emt 0:00:25]} 39. h4 {[%emt 0:00:10]} ({White should play} 39. Kh2 $11) 39... gxh4+ $15 {[%emt 0:00:02]} 40. Kxh4 {[%emt 0:00:01] [#]} Ne6 {[%emt 0:00:07]} (40... d5 $1 $17 {[%cal Rd5d4] And now ...d4 would win.} 41. Qc2 (41. exd5 e4 $17) 41... d4) 41. Ng2 $11 {[%emt 0:00:31]} d5 {[%emt 0:00:10]} 42. Kg3 {[%emt 0:00:06]} dxe4 {[%emt 0:00:19]} 43. dxe4 {[%emt 0:00:02]} Qd7 {[%emt 0:00:14]} 44. f3 {[%emt 0:00:16]} Qd2 {[%emt 0:00:12]} 45. Qb7+ {[%emt 0:00:19]} Kh6 {[%emt 0:00:06]} 46. Qc8 {[%emt 0:00:02]} Nd8 $1 {[%emt 0:00:10]} 47. Qc7 {[%emt 0:00:19]} Ne6 {[%emt 0:00:07]} 48. Qc8 {[%emt 0:00:20]} Nd8 $1 {[%emt 0:00:02]} 49. c4 {[%emt 0:00:08]} Kg7 {[%emt 0:00:27]} 50. Qc7+ {[%emt 0:00:02]} Kf8 {[%emt 0:00:05]} 51. Nh4 {[%emt 0:00:22]} Qe1+ {[%emt 0:00:03]} 52. Kg2 {[%emt 0:00:04]} Qe2+ {[%emt 0:00:06]} 53. Kg3 {[%emt 0:00:12]} Qe1+ {[%emt 0:00:02]} 54. Kg2 {[%emt 0:00:01]} Qe2+ {[%emt 0:00:03]} 1/2-1/2